Cogmind - Beta 15 @@@ ROGUE MODE // 2025.09.29 @ 11:33:17 Player: Blue Cog Result: Self-destructed Performance ------------- Evolutions (1) 500 Regions Visited (3) 600 Robots Destroyed (14) 70 Value Destroyed (302) 302 Prototype IDs (0) 0 Alien Tech Used (0) 0 Bonus (55) 55 TOTAL SCORE: 1527 Bonus ------- Follower Combat Kills 100 Friendly Fire -45 Cogmind --------- Core Integrity 400/400 Matter 300/300 Energy 250/250 System Corruption 0% Temperature Cool (0) Movement Walking (120) Location -9/Materials Parts ------- > --- POWER (3) -------- Ion Engine > --- PROPULSION (2) --- Aluminum Leg Aluminum Leg > --- UTILITY (2) ------ Improved Heat Sink Small Storage Unit > --- WEAPON (2) ------- Heavy Particle Cannon Assault Rifle > --- INVENTORY (8) ---- Ion Engine Aluminum Leg Medium Matter Pod (100) Sensor Array Core Shielding Assault Rifle Rocket Launcher Heavy Flail Peak State ------------ > --- POWER ------------ Light Ion Engine > --- PROPULSION ------- Wheel Compact Wheel > --- UTILITY ---------- Improved Heat Sink Small Storage Unit > --- WEAPON ----------- Heavy Particle Cannon Grenade Launcher > --- INVENTORY -------- Ion Engine Light Treads Medium Matter Pod Sensor Array Core Shielding Assault Rifle Assault Rifle Heavy Flail [Rating: 12] Favorites ----------- Power Light Ion Engine Engine Light Ion Engine Propulsion Aluminum Leg Treads Light Treads Leg Aluminum Leg Wheel Wheel Utility Small Storage Unit Device Improved Heat Sink Storage Small Storage Unit Weapon Assault Rifle Energy Gun Medium Laser Energy Cannon Heavy Particle Cannon Ballistic Gun Assault Rifle Launcher Grenade Launcher Build | -11 -10 -10 -9 ------- Run | Yrd Mat Min Mat Slots Evolved 2 | . . . 2 Power 2 | . . . 2 Propulsion . | . . . . Utility . | . . . . Weapon . | . . . . Parts Attached 18 | 7 3 8 . Power 2 | 1 . 1 . Engine 2 | 1 . 1 . Core . | . . . . Reactor . | . . . . Propulsion 6 | 2 . 4 . Treads 1 | . . 1 . Leg 3 | . . 3 . Wheel 2 | 2 . . . Hover . | . . . . Flight . | . . . . Utility 3 | 2 . 1 . Device 2 | 1 . 1 . Storage 1 | 1 . . . Processor . | . . . . Hackware . | . . . . Protection . | . . . . Artifact . | . . . . Weapon 7 | 2 3 2 . Energy Gun 2 | 2 . . . Energy Cannon 1 | . . 1 . Ballistic Gun 3 | . 2 1 . Ballistic Cannon . | . . . . Launcher 1 | . 1 . . Special Weapon . | . . . . Impact Weapon . | . . . . Slashing Weapon . | . . . . Piercing Weapon . | . . . . Special Melee Weapon . | . . . . Unidentified Prototypes . | . . . . Parts Lost 4 | . . 4 . Power 1 | . . 1 . Propulsion 2 | . . 2 . Utility . | . . . . Weapon 1 | . . 1 . Highest Loss Streak 3 | . . 3 . To Critical Strikes . | . . . . Average Backups 6 | 1 5 7 . Power . | . 1 . . Propulsion 1 | 1 2 1 . Utility 2 | . 1 3 . Weapon 1 | . 1 2 . Tool/Special . | . . . . Unused Backups 7 | . . 1 6 Power 1 | . . . 1 Propulsion 1 | . . 1 . Utility 3 | . . . 3 Weapon 2 | . . . 2 Tool/Special . | . . . . Average Slot Usage (%) 98 | . 100 98 . Engine 14 | . 14 14 . Treads 1 | . . 2 . Leg 9 | . . 14 . Wheel 16 | . 28 10 . Device 14 | . 14 14 . Storage 14 | . 14 14 . Energy Gun 6 | . 18 . . Energy Cannon 7 | . . 11 . Ballistic Gun 8 | . 1 12 . Launcher 4 | . 8 3 . Peak Build Rating 12 | 7 7 12 . Average Rating 9 | 5 7 11 . On Entrance 6 | . 7 7 12 Naked Turns . | . . . . Heaviest Build 19 | 12 14 19 . Greatest Support 26 | 26 26 26 . Greatest Overweight (x) 1 | . . 1 . Average Overweight (x) . | . . . . Largest Inventory Capacity 8 | 8 8 8 . Average Capacity 7 | 7 8 8 . Most Carried 8 | 3 8 8 . Average Carried 6 | 1 5 7 . Final Capacity 8 | 8 8 8 8 Final Carried 8 | 3 8 8 8 Class Distribution -------------------- 100% | Mutant Dominant Class ---------------- Mutant | -10/Materials Mutant | -10/Mines Mutant | -9/Materials Resources | -11 -10 -10 -9 ----------- Run | Yrd Mat Min Mat Matter Collected 564 | 270 50 244 . Remotely . | . . . . Salvage Created 305 | 34 82 189 . Parts 24 | 4 7 13 . Haulers Intercepted 1 | . 1 . . Recyclers Shooed . | . . . . Parts Field Recycled . | . . . . Retrieved Matter . | . . . . Parts Self-Destructed . | . . . . Prevented . | . . . . Kills | -11 -10 -10 -9 ------- Run | Yrd Mat Min Mat Combat Hostiles Destroyed 11 | . 4 7 . Guns 3 | . 1 2 . Cannons 3 | . . 3 . AOE 5 | . 3 2 . Classes Destroyed 4 | 1 3 . . Tunneler 2 | 2 . . . Hauler 1 | . 1 . . Swarmer 6 | . 3 3 . Grunt 5 | . 1 4 . Best Kill Streak 5 | 2 4 5 . Combat Bots Only 5 | . 4 5 . Max Kills in Single Turn 2 | 1 2 1 . Gunslinging . | . . . . Exploded 2 | . 2 1 . Melee . | . . . . Uniques/NPCs Destroyed . | . . . . Combat | -11 -10 -10 -9 -------- Run | Yrd Mat Min Mat Hostile Shots Fired 42 | . 10 32 . Missed 9 | . 3 6 . Hits 33 | . 7 26 . Projectile 33 | . 7 26 . Damage Taken 418 | . 97 321 . Core 80 | . 16 64 . Absorbed by Shields . | . . . . Core Remaining (%) 84 | 100 . 68 . Volleys Fired 28 | 3 11 14 . Largest 2 | 2 2 2 . Hottest 95 | 90 90 95 . Shots Fired 51 | 6 20 25 . Gun 35 | 6 18 11 . Cannon 11 | . . 11 . Launcher 5 | . 2 3 . Special . | . . . . Kinetic 11 | . . 11 . Thermal 35 | 6 18 11 . Explosive 5 | . 2 3 . Electromagnetic . | . . . . Robot Hit Streak 7 | 2 7 4 . Robot Miss Streak 2 | 1 1 2 . Penetration Max . | . . . . Secondary Targets . | . . . . Shots Hit Robots 30 | 3 13 14 . Core Hits 22 | 2 7 13 . Critical Kills . | . . . . Critical Parts Destroyed . | . . . . Critical Strikes . | . . . . Melee Attacks . | . . . . Impact . | . . . . Slashing . | . . . . Piercing . | . . . . Sneak Attacks . | . . . . Combat Hostiles . | . . . . Follow-up Attacks . | . . . . Damage Inflicted 850 | 34 323 493 . Guns 271 | 34 148 89 . Cannons 160 | . . 160 . Explosions 419 | . 175 244 . Melee . | . . . . Ramming . | . . . . Kinetic 89 | . . 89 . Thermal 342 | 34 148 160 . Explosive 419 | . 175 244 . Electromagnetic . | . . . . Impact . | . . . . Slashing . | . . . . Piercing . | . . . . Highest Corruption . | . . . . Average Corruption . | . . . . Corruption Purged . | . . . . Corruption Blocked . | . . . . Overload Shots . | . . . . Overflow Damage 19 | . . 19 . Projectiles 7 | . . 7 . Explosions 12 | . . 12 . Melee . | . . . . Knockbacks . | . . . . Impact . | . . . . Kinetic . | . . . . Secondary . | . . . . Self-Inflicted Damage 27 | . . 27 . Shots 1 | . . 1 . Rammed . | . . . . Targets Rammed . | . . . . Kicked . | . . . . Crushed . | . . . . Highest Temperature 178 | 60 178 12 . Average Temperature 64 | 28 89 5 . Received Heat Transfer 132 | . 33 99 . Siege Activations . | . . . . Martial Activations . | . . . . Shielding Activations . | . . . . Robots Disrupted . | . . . . Combat Hostiles . | . . . . Robots Corrupted . | . . . . Combat Hostiles . | . . . . Parts Fried . | . . . . Impact Corruptions . | . . . . Robots Melted . | . . . . Combat Hostiles . | . . . . Parts Melted 1 | . 1 . . Heat Transferred 693 | 87 384 222 . Parts Sabotaged . | . . . . Parts Stolen . | . . . . Parts Stripped . | . . . . Power Chain Reactions . | . . . . Alert | -11 -10 -10 -9 ------- Run | Yrd Mat Min Mat Maximum Alert Level 1 | . . 1 . Low Security (%) 94 | 100 100 90 . Level 1 5 | . . 9 . Level 2 . | . . . . Level 3 . | . . . . Level 4 . | . . . . Level 5 . | . . . . High Security . | . . . . Max Security . | . . . . Peak Influence 216 | 10 111 216 . Initial 39 | . . 36 39 Average 90 | 1 45 125 . Influence Increases 518 | 10 192 316 . Destroy 0b10 Robot/C 300 | . 80 220 . Destroy 0b10 Robot/NC 15 | 10 5 . . Destroy Leader 42 | . 12 30 . Allied During Kill 14 | . . 14 . Successful Hack 19 | . 19 . . Select Force Hacks 30 | . 30 . . Disable Machine 45 | . 15 30 . Destroy Structure 38 | . 16 22 . Lose Combat Pursuer 15 | . 15 . . Influence Decreases 479 | 10 99 307 63 Entered New Map 120 | . . 57 63 Time Decay 319 | 10 99 210 . Lost Part 40 | . . 40 . Squads Dispatched 5 | . 3 2 . Investigation 2 | . 1 1 . Extermination . | . . . . Reinforcement 2 | . 2 . . Assault 1 | . . 1 . Garrison . | . . . . Intercept . | . . . . Searches Triggered . | . . . . Construction Impeded . | . . . . Haulers Reinforced . | . . . . Active Scanning Responses . | . . . . Cargo Convoy Interrupts . | . . . . Stealth | -11 -10 -10 -9 --------- Run | Yrd Mat Min Mat Distress Signals 1 | . 1 . . Communications Jammed . | . . . . Distress Signals . | . . . . Times Spotted 22 | . 10 12 . Peak Tracking Total 4 | . 4 4 . Tactical Retreats 1 | . 1 . . Traps | -11 -10 -10 -9 ------- Run | Yrd Mat Min Mat Traps Triggered 1 | . 1 . . Indirectly . | . . . . Trap Hack Attempts . | . . . . Triggered . | . . . . Disarmed . | . . . . Reprogrammed . | . . . . Reused . | . . . . Traps Extracted . | . . . . Installed . | . . . . Triggered . | . . . . Machines | -11 -10 -10 -9 ---------- Run | Yrd Mat Min Mat Machines Disabled 3 | . 1 2 . Max in Single Turn 1 | . 1 1 . Machines Repaired . | . . . . Machines Dismantled . | . . . . Machines Sabotaged . | . . . . Overloaded Fab Kills . | . . . . Hacking | -11 -10 -10 -9 --------- Run | Yrd Mat Min Mat Machines Accessed 5 | . 4 1 . Terminals 3 | . 3 . . Fabricators . | . . . . Repair Stations . | . . . . Recycling Units 1 | . 1 . . Scanalyzers . | . . . . Garrison Access . | . . . . Total Hacks 12 | . 11 1 . Successful 6 | . 5 1 . Failed 6 | . 6 . . Catastrophic 1 | . 1 . . Database Lockouts . | . . . . Manual 11 | . 11 . . Terminals 8 | . 8 . . Fabricators . | . . . . Repair Stations . | . . . . Recycling Units 3 | . 3 . . Scanalyzers . | . . . . Garrison Access . | . . . . Terminal Hacks 3 | . 2 1 . Robot Analysis 2 | . 2 . . Open Door 1 | . . 1 . Fabricator Hacks . | . . . . Repair Station Hacks . | . . . . Recycling Unit Hacks . | . . . . Scanalyzer . | . . . . Garrison Access Hacks . | . . . . Unauthorized Hacks 3 | . 3 . . Terminals 2 | . 2 . . Botnet 2 | . 2 . . Fabricators . | . . . . Repair Stations . | . . . . Recycling Units 1 | . 1 . . Tunnel 1 | . 1 . . Scanalyzers . | . . . . Garrison Access . | . . . . Data Cores Recovered . | . . . . Used . | . . . . Hacking Detections 4 | . 4 . . Full Trace Events . | . . . . Feedback Events . | . . . . Feedback Blocked . | . . . . Robot Schematics Acquired . | . . . . Robots Built . | . . . . Authchips . | . . . . Time . | . . . . Total Robot Build Rating . | . . . . Part Schematics Acquired . | . . . . Parts Built . | . . . . Authchips . | . . . . Time . | . . . . Total Part Build Rating . | . . . . Parts Repaired . | . . . . Time . | . . . . Parts Recycled . | . . . . Recycled Matter . | . . . . Retrieved Matter . | . . . . Retrieved Components . | . . . . Parts Scanalyzed . | . . . . Part Schematics Acquired . | . . . . Parts Damaged . | . . . . Bothacking | -11 -10 -10 -9 ------------ Run | Yrd Mat Min Mat Used RIF Installer . | . . . . Robots Hacked . | . . . . Non-combat . | . . . . Combat . | . . . . Robot Hacks Applied . | . . . . Relay Couplers Released . | . . . . Fabnet Peak Effective % . | . . . . Robots Rewired . | . . . . Allies Hacked . | . . . . Hacks Repelled . | . . . . Allies | -11 -10 -10 -9 -------- Run | Yrd Mat Min Mat Total Allies 1 | . . 1 . Largest Group 1 | . . 1 . Highest-Rated Group 31 | . . 31 . Highest-Rated Ally 31 | . . 31 . Total Orders . | . . . . Ally Attacks 9 | . . 9 . Total Damage 188 | . . 188 . Kills 4 | . . 4 . Allies Corrupted . | . . . . Allies Melted . | . . . . Intel | -11 -10 -10 -9 ------- Run | Yrd Mat Min Mat Active Infowar (turns) 276 | 8 220 48 . Seismic 276 | 8 220 48 . Robot Analysis Total 2 | . 2 . . Derelict Logs Recovered 1 | . . 1 . Drone Launches . | . . . . Drone Recoveries . | . . . . Exploration | -11 -10 -10 -9 ------------- Run | Yrd Mat Min Mat Turns Passed 736 | 67 220 449 . Spaces Moved 587 | 51 184 352 . Core 3 | 3 . . . Treads 7 | . . 7 . Legs 197 | . . 197 . Wheels 380 | 48 184 148 . Hover . | . . . . Flight . | . . . . Fastest Speed 50 | 50 90 90 . Average Speed 101 | 87 90 108 . Slowest Speed 190 | 100 90 190 . Overloaded Moves . | . . . . Propulsion Burnouts . | . . . . Robots Hopped . | . . . . Potential Cave-ins . | . . . . Cave-ins Triggered . | . . . . Exploration Rate (%) 26 | 4 46 55 1 Regions Visited 3 Branch Regions 1 Pre-discovered Areas 3 | . 1 2 . Known Exits Taken . | . . . . Unknown Exits Taken 3 | 1 1 1 . Scrap Searched 2 | . . 2 . Spaces Dug . | . . . . Terrain Destroyed 44 | . 15 29 . Melee . | . . . . Projectile 4 | . . 4 . AOE 40 | . 15 25 . Terrain Rammed . | . . . . Walls Destroyed . | . . . . Machines Disabled . | . . . . Actions | -11 -10 -10 -9 --------- Run | Yrd Mat Min Mat Total 671 | 63 216 392 . Wait 22 | . 10 12 . Move 584 | 50 183 351 . Hop . | . . . . Pick Up 12 | 3 6 3 . Fast Attach 10 | 7 . 3 . Attach 3 | . . 3 . Detach 1 | . . 1 . Swap 7 | . 5 2 . Drop 4 | . 1 3 . Fire 28 | 3 11 14 . Melee . | . . . . Ram . | . . . . Kick . | . . . . Crush . | . . . . Escape Stasis . | . . . . Rewire . | . . . . Trap . | . . . . Miscellaneous . | . . . . Route ------- -11/Scrapyard -10/Materials (discovered 2 exits: [*Mat] / *Min) -10/Mines -9/Materials History --------- Turn | Location | Event 20 | -11/Scrapyard | Discovered new exit (range 15) 68 | -11/Scrapyard | Entered Materials 170 | -10/Materials | Discovered new exit (range 10) 260 | -10/Materials | Discovered new exit (range 9) 288 | -10/Materials | Entered Mines 307 | -10/Mines | Build established: Mutant 308 | -10/Mines | Met a Derelict testing a Signal Generator 335 | -10/Mines | Met a Derelict shopkeep closing up shop 346 | -10/Mines | Learned location of Zion (-7) 480 | -10/Mines | Lost 3 parts (1p2n) 530 | -10/Mines | Discovered new exit (range 4) 556 | -10/Mines | Received a Rocket Launcher from a helpful Derelict 604 | -10/Mines | Deemed a non-threat by the Exiles lab entrance 641 | -10/Mines | Learned location of Storage (-7) 737 | -10/Mines | Entered Materials 737 | -9/Materials | Accompanied by 1 ally 737 | -9/Materials | Evolved 2 slots: Power x2 737 | -9/Materials | Self-destructed Last Messages --------------- that place, they've tightened security following our previous successful raids." World map updated: -7/Storage. 00641_ T-07 Excavator is excavating. 00643_ ZH-1LI(g): "We scattered so the Unaware couldn't effectively use their advantage in numbers, and I suggest you do the same." 00643_ ZH-1LI(g) slips back into the shadows. 00645_ T-07 Excavator is excavating. 00652_ Searching scrap... 00652_ Found Weapon Shielding. 00652_ Found 36 Matter. 00652_ Found Beam Cannon. 00652_ Found Lgt. Treads. 00652_ Found 50 Matter. 00658_ T-07 Excavator is excavating. 00714_ K-01 Serf collects debris. PARAMETERS=POWER+2 LOCATION=UNKNOWN GOAL=ESCAPE Map ----- +----------------------------------------------------+ | ???????????????????????????????? | | ???????????????????????????????? | | ???????????????????????????????? | | ???????????????????????????????? | | ???????????????????????????????? | | ???????????????????????????????? | | ???????????????????????????????? | | ???????????????????????????????? | | ???????????????????????????????? | | ???????????????????????????????? | | ?????? ??????????????????????? | | ?????? ??????????????????????? | | ?????? ??????????????????????? | | ?????# #?????????????????????? | | ?????# +?????????????????????? | | ?????# #?????????????????????? | | ?????+ #?????????????????????? | | ?????# #?????????????????????? | | ?????# #?????????????????????? | | ?????# #?????????????????????? | | ?????# #?????????????????????? | | ?????# #?????????????????????? | | ?????# #?????????????????????? | | ?????#g #?????????????????????? | | ?????# #?????????????????????? | | ?????# @ #?????????????????????? | | ?????# #?????????????????????? | | ?????#####?????????????????????? | | ???????????????????????????????? | | ???????????????????????????????? | | ???????????????????????????????? | | ???????????????????????????????? | | ???????????????????????????????? | | ???????????????????????????????? | | ???????????????????????????????? | | ???????????????????????????????? | | ???????????????????????????????? | | ???????????????????????????????? | | ???????????????????????????????? | | ???????????????????????????????? | | ???????????????????????????????? | | ???????????????????????????????? | | ???????????????????????????????? | | ???????????????????????????????? | | ???????????????????????????????? | | | | | | | | | | | +----------------------------------------------------+ Best States ------------- Heat Dissipation 39 Energy Generation 10 Energy Capacity 250 Matter Stores 300 Matter Capacity 300 Sight Range 16 Terrain Scan Density 10 Evasion (%) 55 Recoil Reduction 1 Item Schematics ----------------- None Robot Schematics ------------------ None Fabricated ------------ Nothing Repaired ---------- Nothing Alien Tech Used ----------------- None Achievements -------------- None Challenges ------------ None Game ------ Seed SalvageDrainedLauncher Manual? 0 Play Time 00:11:46 Cumulative 94.8 hours Start 2025.09.29 @ 11:21:34 End 2025.09.29 @ 11:33:17 Sessions 1 Manual Loads 0 Difficulty Rogue Special Mode None Game No. 58 Rogue 58 Adventurer 0 Explorer 0 Win Type - Total 2 Types 1/0/0/1/0/0/0/0/0/0 Lore% 33 Gallery% 46 Achievement% 48 Wizard Run 0 Options --------- Layout 1 ASCII 0 Keyboard 1 Movement Arrows Keybinds 0 Fullscreen 2 Font 24/Smallcaps Map View 50x35 Zoom Use 0% Tactical HUD 1 Map Filters NONE Filters NONE Steam 1 RUN: 029f2f7b-456c-485a-98b5-366b37d4e0a4